Workbook

Sheet Перечень
J1: Приложение к распоряжению Комитета по государственному заказу Санкт-Петербурга от __________ № ____________
B2: ПЕРЕЧЕНЬ отдельных видов товаров, работ, услуг, в отношении которых определяются требования к их потребительским свойствам (в том числе характеристикам качества) и иным характеристикам (в том числе предельные цены товаров, работ, услуг)
B3: № п/п | C3: Код по ОКПД2 | D3: Наименование отдельного вида товаров, работ, услуг | E3: Требования к потребительским свойствам (в том числе характеристикам качества) и иным характеристикам (в том числе предельные цены) отдельных видов товаров, работ, услуг
E4: Характеристика | F4: Единица измерения | H4: Значение характеристики
F5: Код по ОКЕИ | G5: Наименование | H5: Для государственных гражданских служащих государственных органов Санкт-Петербурга, относящихся к категории «руководители», руководителя органа управления территориальным государственным внебюджетным фондом, руководителей унитарных предприятий Санкт-Петербурга | I5: Для руководителей казенных и бюджетных учреждений | J5: Для иных должностей | K5: Без учета категорий и (или) групп должностей работников государственных учреждений
B6: 1 | C6: 2 | D6: 3 | E6: 4 | F6: 5 | G6: 6 | H6: 7 | I6: 8 | J6: 9 | K6: 10
B7: 2. Перечень отдельных видов товаров, работ, услуг, определенный Правительством Санкт-Петербурга
E8: В соответствии с кодом конечного каталожного наименования (ККН) | H8: Предельная цена (руб. с НДС)
B9: 1 | C9: 2 | D9: 3 | E9: 4 | F9: 5 | G9: 6 | H9: 7 | I9: 8 | J9: 9 | K9: 10
B10: 28 | C10: 49.32.12 | D10: Услуги арендованных легковых автомобилей с водителем в Москве | E10: 49.32.12.000-001 | F10: 356 | G10: Час | H10: 1550 | J10: -
B11: 29 | C11: 49.32.12 | D11: Услуги арендованных легковых автомобилей с водителем в Санкт-Петербурге | E11: 49.32.12.000-003 | F11: 356 | G11: Час | H11: 1500 | J11: -
E12: 49.32.12.000-004 | F12: 356 | G12: Час | H12: - | J12: 1000
B13: 30 | C13: 56.29.20 | D13: Услуги столовых. Пояснение по требуемой продукции: услуги школьных столовых и кухонь | E13: 56.29.20.120-100 | F13: 796 | G13: Штука | H13: 117.6
E14: 56.29.20.120-101 | F14: 796 | G14: Штука | H14: 176.4
E15: 56.29.20.120-102 | F15: 796 | G15: Штука | H15: 294
E16: 56.29.20.120-103 | F16: 796 | G16: Штука | H16: 152.8
E17: 56.29.20.120-104 | F17: 796 | G17: Штука | H17: 229.2
E18: 56.29.20.120-105 | F18: 796 | G18: Штука | H18: 382
E19: 56.29.20.120-106 | F19: 796 | G19: Штука | H19: 172.1
E20: 56.29.20.120-107 | F20: 796 | G20: Штука | H20: 258.1
E21: 56.29.20.120-108 | F21: 796 | G21: Штука | H21: 430.2
E22: 56.29.20.120-109 | F22: 796 | G22: Штука | H22: 99.9
E23: 56.29.20.120-110 | F23: 796 | G23: Штука | H23: 149.8
E24: 56.29.20.120-111 | F24: 796 | G24: Штука | H24: 249.7
E25: 56.29.20.120-112 | F25: 796 | G25: Штука | H25: х
E26: 56.29.20.120-113 | F26: 796 | G26: Штука | H26: х
E27: 56.29.20.120-114 | F27: 796 | G27: Штука | H27: х
E28: 56.29.20.120-115 | F28: 796 | G28: Штука | H28: х
E29: 56.29.20.120-116 | F29: 796 | G29: Штука | H29: х
E30: 56.29.20.120-117 | F30: 796 | G30: Штука | H30: х
E31: 56.29.20.120-118 | F31: 796 | G31: Штука | H31: х
E32: 56.29.20.120-119 | F32: 796 | G32: Штука | H32: х
E33: 56.29.20.120-120 | F33: 796 | G33: Штука | H33: х
E34: 56.29.20.120-121 | F34: 796 | G34: Штука | H34: х
E35: 56.29.20.120-122 | F35: 796 | G35: Штука | H35: х
E36: 56.29.20.120-123 | F36: 796 | G36: Штука | H36: х
B37: 31 | C37: 56.29.20 | D37: Услуги столовых. Пояснение по требуемой продукции: услуги дошкольных столовых и кухонь | E37: 56.29.20.190-053 | F37: 796 | G37: Штука | H37: 82.92
E38: 56.29.20.190-054 | F38: 796 | G38: Штука | H38: 20.73
E39: 56.29.20.190-055 | F39: 796 | G39: Штука | H39: 145.11
E40: 56.29.20.190-056 | F40: 796 | G40: Штука | H40: 62.19
E41: 56.29.20.190-057 | F41: 796 | G41: Штука | H41: 82.92
E42: 56.29.20.190-058 | F42: 796 | G42: Штука | H42: 310.94
E43: 56.29.20.190-059 | F43: 796 | G43: Штука | H43: 373.13
E44: 56.29.20.190-060 | F44: 796 | G44: Штука | H44: 393.86
E45: 56.29.20.190-061 | F45: 796 | G45: Штука | H45: 414.58
E46: 56.29.20.190-062 | F46: 796 | G46: Штука | H46: 106.96
E47: 56.29.20.190-063 | F47: 796 | G47: Штука | H47: 26.74
E48: 56.29.20.190-064 | F48: 796 | G48: Штука | H48: 187.19
E49: 56.29.20.190-065 | F49: 796 | G49: Штука | H49: 80.22
E50: 56.29.20.190-066 | F50: 796 | G50: Штука | H50: 106.96
E51: 56.29.20.190-067 | F51: 796 | G51: Штука | H51: 401.13
E52: 56.29.20.190-068 | F52: 796 | G52: Штука | H52: 481.35
E53: 56.29.20.190-069 | F53: 796 | G53: Штука | H53: 508.09
E54: 56.29.20.190-070 | F54: 796 | G54: Штука | H54: 534.83
E55: 56.29.20.190-071 | F55: 796 | G55: Штука | H55: 573.48
E56: 56.29.20.190-072 | F56: 796 | G56: Штука | H56: 605.33
E57: 56.29.20.190-073 | F57: 796 | G57: Штука | H57: 792.41
E58: 56.29.20.190-074 | F58: 796 | G58: Штука | H58: 836.44
E59: 56.29.20.190-075 | F59: 796 | G59: Штука | H59: 726.87
E60: 56.29.20.190-076 | F60: 796 | G60: Штука | H60: 767.26
E61: 56.29.20.190-077 | F61: 796 | G61: Штука | H61: 701.72
E62: 56.29.20.190-078 | F62: 796 | G62: Штука | H62: 740.7
E63: 56.29.20.190-001 | F63: 796 | G63: Штука | H63: х
E64: 56.29.20.190-002 | F64: 796 | G64: Штука | H64: х
E65: 56.29.20.190-003 | F65: 796 | G65: Штука | H65: х
E66: 56.29.20.190-004 | F66: 796 | G66: Штука | H66: х
E67: 56.29.20.190-005 | F67: 796 | G67: Штука | H67: х
E68: 56.29.20.190-006 | F68: 796 | G68: Штука | H68: х
E69: 56.29.20.190-007 | F69: 796 | G69: Штука | H69: х
E70: 56.29.20.190-008 | F70: 796 | G70: Штука | H70: х
E71: 56.29.20.190-009 | F71: 796 | G71: Штука | H71: х
E72: 56.29.20.190-010 | F72: 796 | G72: Штука | H72: х
E73: 56.29.20.190-011 | F73: 796 | G73: Штука | H73: х
E74: 56.29.20.190-012 | F74: 796 | G74: Штука | H74: х
E75: 56.29.20.190-013 | F75: 796 | G75: Штука | H75: х
E76: 56.29.20.190-014 | F76: 796 | G76: Штука | H76: х
E77: 56.29.20.190-015 | F77: 796 | G77: Штука | H77: х
E78: 56.29.20.190-016 | F78: 796 | G78: Штука | H78: х
E79: 56.29.20.190-017 | F79: 796 | G79: Штука | H79: х
E80: 56.29.20.190-018 | F80: 796 | G80: Штука | H80: х
E81: 56.29.20.190-019 | F81: 796 | G81: Штука | H81: х
E82: 56.29.20.190-020 | F82: 796 | G82: Штука | H82: х
E83: 56.29.20.190-021 | F83: 796 | G83: Штука | H83: х
E84: 56.29.20.190-022 | F84: 796 | G84: Штука | H84: х
E85: 56.29.20.190-023 | F85: 796 | G85: Штука | H85: х
E86: 56.29.20.190-024 | F86: 796 | G86: Штука | H86: х
E87: 56.29.20.190-025 | F87: 796 | G87: Штука | H87: х
E88: 56.29.20.190-026 | F88: 796 | G88: Штука | H88: х
B89: 32 | C89: 69.10.19 | D89: Услуги юридические прочие. Пояснение по требуемым услугам: услуги независимых экспертов, включаемых в составы аттестационной и конкурсной комиссий, образуемых в государственном органе Санкт-Петербурга | E89: - | F89: 356 | G89: Час | H89: Не более 150 | K89: -
B90: 2.1. Перечень товарных позиций части «Продовольственные товары и сырье»
E91: В соответствии с кодом конечного каталожного наименования (ККН) | H91: Предельная цена (руб. с НДС)
B92: 33 | C92: 01.11.61 | D92: Фасоль овощная | E92: 01.11.61.000-001 | F92: 166 | G92: Килограмм | H92: 1997.36
B93: 34 | C93: 01.11.71 | D93: Фасоль сушеная. Пояснение по требуемой продукции: фасоль продовольственная | E93: 01.11.71.110-001 | F93: 166 | G93: Килограмм | H93: 240.38
E94: 01.11.71.110-003 | F94: 166 | G94: Килограмм | H94: 240.38
E95: 01.11.71.110-004 | F95: 166 | G95: Килограмм | H95: 240.38
B96: 35 | C96: 01.11.74 | D96: Чечевица сушеная. Пояснение по требуемой продукции: чечевица продовольственная | E96: 01.11.74.110-001 | F96: 166 | G96: Килограмм | H96: 245.84
E97: 01.11.74.110-003 | F97: 166 | G97: Килограмм | H97: 245.84
E98: 01.11.74.110-004 | F98: 166 | G98: Килограмм | H98: 245.84
E99: 01.11.74.110-005 | F99: 166 | G99: Килограмм | H99: 245.84
E100: 01.11.74.110-006 | F100: 166 | G100: Килограмм | H100: 245.84
B101: 36 | C101: 01.11.75 | D101: Горох сушеный. Пояснение по требуемой продукции: горох шлифованный | E101: 01.11.75.110-001 | F101: 166 | G101: Килограмм | H101: 82.28
E102: 01.11.75.110-002 | F102: 166 | G102: Килограмм | H102: 67.14
B103: 37 | C103: 01.11.83 | D103: Арахис (орех земляной) лущеный | E103: 01.11.83.000-001 | F103: 166 | G103: Килограмм | H103: 330.66
B104: 38 | C104: 01.13.12 | D104: Капуста. Пояснение по требуемой продукции: капуста белокочанная | E104: 01.13.12.120-001 | F104: 166 | G104: Килограмм | H104: 43.63
E105: 01.13.12.120-002 | F105: 166 | G105: Килограмм | H105: 101.7
B106: 39 | C106: 01.13.12 | D106: Капуста. Пояснение по требуемой продукции: капуста брюссельская | E106: 01.13.12.110-001 | F106: 166 | G106: Килограмм | H106: 985.04
B107: 40 | C107: 01.13.12 | D107: Капуста. Пояснение по требуемой продукции: капуста китайская | E107: 01.13.12.150-001 | F107: 166 | G107: Килограмм | H107: 156.72
B108: 41 | C108: 01.13.12 | D108: Капуста. Пояснение по требуемой продукции: капуста кольраби | E108: 01.13.12.160-001 | F108: 166 | G108: Килограмм | H108: 413.14
B109: 42 | C109: 01.13.12 | D109: Капуста. Пояснение по требуемой продукции: капуста краснокочанная | E109: 01.13.12.130-001 | F109: 166 | G109: Килограмм | H109: 112.27
B110: 43 | C110: 01.13.12 | D110: Капуста. Пояснение по требуемой продукции: капуста савойская | E110: 01.13.12.140-001 | F110: 166 | G110: Килограмм | H110: 246.66
B111: 44 | C111: 01.13.13 | D111: Капуста цветная и брокколи. Пояснение по требуемой продукции: капуста брокколи | E111: 01.13.13.000-001 | F111: 166 | G111: Килограмм | H111: 391.8
B112: 45 | C112: 01.13.13 | D112: Капуста цветная и брокколи. Пояснение по требуемой продукции: капуста цветная | E112: 01.13.13.000-002 | F112: 166 | G112: Килограмм | H112: 248.7
E113: 01.13.13.000-003 | F113: 166 | G113: Килограмм | H113: 248.7
B114: 46 | C114: 01.13.16 | D114: Шпинат | E114: 01.13.16.000-001 | F114: 166 | G114: Килограмм | H114: 648.81
B115: 47 | C115: 01.13.19 | D115: Овощи листовые или стебельные прочие. Пояснение по требуемой продукции: петрушка свежая | E115: 01.13.19.000-001 | F115: 166 | G115: Килограмм | H115: 478.83
B116: 48 | C116: 01.13.19 | D116: Овощи листовые или стебельные прочие. Пояснение по требуемой продукции: сельдерей | E116: 01.13.19.000-003 | F116: 166 | G116: Килограмм | H116: 417.56
B117: 49 | C117: 01.13.19 | D117: Овощи листовые или стебельные прочие. Пояснение по требуемой продукции: укроп свежий | E117: 01.13.19.000-002 | F117: 166 | G117: Килограмм | H117: 504.06
B118: 50 | C118: 01.13.19 | D118: Овощи листовые или стебельные прочие. Пояснение по требуемой продукции: щавель | E118: 01.13.19.000-005 | F118: 166 | G118: Килограмм | H118: 601.26
B119: 51 | C119: 01.13.19 | D119: Овощи листовые или стебельные прочие. Пояснение по требуемой продукции: базилик свежий | E119: 01.13.19.000-006 | F119: 166 | G119: Килограмм | H119: 4214.83
B120: 52 | C120: 01.13.19 | D120: Овощи листовые или стебельные прочие. Пояснение по требуемой продукции: кориандр свежий (кинза) | E120: 01.13.19.000-007 | F120: 166 | G120: Килограмм | H120: 934.49
B121: 53 | C121: 01.13.21 | D121: Арбузы | E121: 01.13.21.000-001 | F121: 166 | G121: Килограмм | H121: 148.1
B122: 54 | C122: 01.13.29 | D122: Культуры бахчевые прочие. Пояснение по требуемой продукции: дыня | E122: 01.13.29.000-001 | F122: 166 | G122: Килограмм | H122: 388.96
B123: 55 | C123: 01.13.32 | D123: Огурцы | E123: 01.13.32.000-002 | F123: 166 | G123: Килограмм | H123: 199.62
E124: 01.13.32.000-004 | F124: 166 | G124: Килограмм | H124: 199.62
E125: 01.13.32.000-005 | F125: 166 | G125: Килограмм | H125: 199.62
E126: 01.13.32.000-003 | F126: 166 | G126: Килограмм | H126: 220.75
E127: 01.13.32.000-006 | F127: 166 | G127: Килограмм | H127: 220.75
E128: 01.13.32.000-007 | F128: 166 | G128: Килограмм | H128: 220.75
B129: 56 | C129: 01.13.33 | D129: Баклажаны | E129: 01.13.33.000-001 | F129: 166 | G129: Килограмм | H129: 273.11
B130: 57 | C130: 01.13.34 | D130: Томаты (помидоры) | E130: 01.13.34.000-001 | F130: 166 | G130: Килограмм | H130: 280.97
E131: 01.13.34.000-003 | F131: 166 | G131: Килограмм | H131: 280.97
E132: 01.13.34.000-002 | F132: 166 | G132: Килограмм | H132: 249.66
E133: 01.13.34.000-004 | F133: 166 | G133: Килограмм | H133: 249.66
B134: 58 | C134: 01.13.39 | D134: Культуры овощные плодовые прочие, не включенные в другие группировки. Пояснение по требуемой продукции: кабачки | E134: 01.13.39.110-001 | F134: 166 | G134: Килограмм | H134: 298.11
E135: 01.13.39.110-002 | F135: 166 | G135: Килограмм | H135: 235.72
B136: 59 | C136: 01.13.39 | D136: Культуры овощные плодовые прочие, не включенные в другие группировки. Пояснение по требуемой продукции: перец сладкий | E136: 01.13.39.190-001 | F136: 166 | G136: Килограмм | H136: 305.21
B137: 60 | C137: 01.13.39 | D137: Культуры овощные плодовые прочие, не включенные в другие группировки. Пояснение по требуемой продукции: тыква продовольственная | E137: 01.13.39.130-001 | F137: 166 | G137: Килограмм | H137: 96.63
B138: 61 | C138: 01.13.41 | D138: Морковь, репа, брюква. Пояснение по требуемой продукции: брюква столовая | E138: 01.13.41.130-001 | F138: 166 | G138: Килограмм | H138: 128.64
B139: 62 | C139: 01.13.41 | D139: Морковь, репа, брюква. Пояснение по требуемой продукции: морковь столовая | E139: 01.13.41.110-001 | F139: 166 | G139: Килограмм | H139: 66.74
E140: 01.13.41.110-003 | F140: 166 | G140: Килограмм | H140: 38.88
B141: 63 | C141: 01.13.41 | D141: Морковь, репа, брюква. Пояснение по требуемой продукции: репа столовая | E141: 01.13.41.120-001 | F141: 166 | G141: Килограмм | H141: 98.55
E142: 01.13.41.120-002 | F142: 166 | G142: Килограмм | H142: 154.26
B143: 64 | C143: 01.13.41 | D143: Морковь, репа, брюква. Пояснение по требуемой продукции: морковь | E143: 01.13.41.110-005 | F143: 166 | G143: Килограмм | H143: 169.93
B144: 65 | C144: 01.13.42 | D144: Чеснок | E144: 01.13.42.000-001 | F144: 166 | G144: Килограмм | H144: 335.04
E145: 01.13.42.000-002 | F145: 166 | G145: Килограмм | H145: 291.73
B146: 66 | C146: 01.13.43 | D146: Культуры овощные луковичные. Пояснение по требуемой продукции: лук репчатый | E146: 01.13.43.110-001 | F146: 166 | G146: Килограмм | H146: 42.57
E147: 01.13.43.110-002 | F147: 166 | G147: Килограмм | H147: 204.62
B148: 67 | C148: 01.13.43 | D148: Культуры овощные луковичные. Пояснение по требуемой продукции: лук свежий зеленый | E148: 01.13.43.190-001 | F148: 166 | G148: Килограмм | H148: 582.78
B149: 68 | C149: 01.13.44 | D149: Лук-порей и прочие культуры овощные луковичные. Пояснение по требуемой продукции: лук-порей | E149: 01.13.44.000-001 | F149: 166 | G149: Килограмм | H149: 573.21
B150: 69 | C150: 01.13.49 | D150: Корнеплоды и клубнеплоды овощные, культуры овощные луковичные (без высокого содержания крахмала или инулина), прочие. Пояснение по требуемой продукции: редис | E150: 01.13.49.130-001 | F150: 166 | G150: Килограмм | H150: 261.36
B151: 70 | C151: 01.13.49 | D151: Корнеплоды и клубнеплоды овощные, культуры овощные луковичные (без высокого содержания крахмала или инулина), прочие. Пояснение по требуемой продукции: редька | E151: 01.13.49.120-001 | F151: 166 | G151: Килограмм | H151: 103.93
E152: 01.13.49.120-002 | F152: 166 | G152: Килограмм | H152: 103.93
B153: 71 | C153: 01.13.49 | D153: Корнеплоды и клубнеплоды овощные, культуры овощные луковичные (без высокого содержания крахмала или инулина), прочие. Пояснение по требуемой продукции: свекла столовая | E153: 01.13.49.110-001 | F153: 166 | G153: Килограмм | H153: 42.59
E154: 01.13.49.110-002 | F154: 166 | G154: Килограмм | H154: 37.84
B155: 72 | C155: 01.13.49 | D155: Корнеплоды и клубнеплоды овощные, культуры овощные луковичные (без высокого содержания крахмала или инулина), прочие. Пояснение по требуемой продукции: сельдерей | E155: 01.13.49.190-001 | F155: 166 | G155: Килограмм | H155: 339.76
B156: 73 | C156: 01.13.49 | D156: Корнеплоды и клубнеплоды овощные, культуры овощные луковичные (без высокого содержания крахмала или инулина), прочие. Пояснение по требуемой продукции: свекла столовая (в вакуумной упаковке) | E156: 01.13.49.110-004 | F156: 166 | G156: Килограмм | H156: 194.53
B157: 74 | C157: 01.13.51 | D157: Картофель. Пояснение по требуемой продукции: картофель продовольственный | E157: 01.13.51.120-001 | F157: 166 | G157: Килограмм | H157: 26.17
E158: 01.13.51.110-001 | F158: 166 | G158: Килограмм | H158: 67.45
E159: 01.13.51.120-002 | F159: 166 | G159: Килограмм | H159: 172.58
B160: 75 | C160: 01.21.11 | D160: Виноград свежий столовых сортов | E160: 01.21.11.000-001 | F160: 166 | G160: Килограмм | H160: 312.6
B161: 76 | C161: 01.22.12 | D161: Бананы | E161: 01.22.12.000-001 | F161: 166 | G161: Килограмм | H161: 137.93
B162: 77 | C162: 01.23.12 | D162: Лимоны и лаймы. Пояснение по требуемой продукции: лимоны | E162: 01.23.12.000-001 | F162: 166 | G162: Килограмм | H162: 145.3
E163: 01.23.12.000-002 | F163: 166 | G163: Килограмм | H163: 155.39
B164: 78 | C164: 01.23.13 | D164: Апельсины | E164: 01.23.13.000-001 | F164: 166 | G164: Килограмм | H164: 138.9
E165: 01.23.13.000-002 | F165: 166 | G165: Килограмм | H165: 167.25
B166: 79 | C166: 01.23.14 | D166: Мандарины, включая танжерины, клементины и аналогичные гибриды цитрусовых культур. Пояснение по требуемой продукции: мандарины | E166: 01.23.14.000-001 | F166: 166 | G166: Килограмм | H166: 180.77
E167: 01.23.14.000-002 | F167: 166 | G167: Килограмм | H167: 236
B168: 80 | C168: 01.24.10 | D168: Яблоки | E168: 01.24.10.000-003 | F168: 166 | G168: Килограмм | H168: 136.33
E169: 01.24.10.000-004 | F169: 166 | G169: Килограмм | H169: 113.79
B170: 81 | C170: 01.24.21 | D170: Груши | E170: 01.24.21.000-001 | F170: 166 | G170: Килограмм | H170: 262
E171: 01.24.21.000-002 | F171: 166 | G171: Килограмм | H171: 244.3
B172: 82 | C172: 01.24.23 | D172: Абрикосы | E172: 01.24.23.000-001 | F172: 166 | G172: Килограмм | H172: 431.16
B173: 83 | C173: 01.24.24 | D173: Вишня | E173: 01.24.24.000-001 | F173: 166 | G173: Килограмм | H173: 571.52
B174: 84 | C174: 01.24.25 | D174: Персики | E174: 01.24.25.000-001 | F174: 166 | G174: Килограмм | H174: 398.05
E175: 01.24.25.000-002 | F175: 166 | G175: Килограмм | H175: 398.05
B176: 85 | C176: 01.24.26 | D176: Нектарины | E176: 01.24.26.000-001 | F176: 166 | G176: Килограмм | H176: 420.28
E177: 01.24.26.000-002 | F177: 166 | G177: Килограмм | H177: 378.7
B178: 86 | C178: 01.24.27 | D178: Сливы | E178: 01.24.27.000-001 | F178: 166 | G178: Килограмм | H178: 283.4
E179: 01.24.27.000-003 | F179: 166 | G179: Килограмм | H179: 283.4
E180: 01.24.27.000-002 | F180: 166 | G180: Килограмм | H180: 236.53
E181: 01.24.27.000-004 | F181: 166 | G181: Килограмм | H181: 236.53
B182: 87 | C182: 01.24.29 | D182: Плоды семечковых и косточковых культур прочие, не включенные в другие группировки. Пояснение по требуемой продукции: черешня | E182: 01.24.29.110-001 | F182: 166 | G182: Килограмм | H182: 645.23
B183: 88 | C183: 01.25.11 | D183: Киви | E183: 01.25.11.000-001 | F183: 166 | G183: Килограмм | H183: 176.35
B184: 89 | C184: 01.25.19 | D184: Ягоды, плоды растений вида Vaccinium прочие, не включенные в другие группировки. Пояснение по требуемой продукции: брусника | E184: 01.25.19.160-001 | F184: 166 | G184: Килограмм | H184: 711.75
B185: 90 | C185: 01.25.19 | D185: Ягоды, плоды растений вида Vaccinium прочие, не включенные в другие группировки. Пояснение по требуемой продукции: клюква | E185: 01.25.19.150-001 | F185: 166 | G185: Килограмм | H185: 653.49
B186: 91 | C186: 01.25.19 | D186: Ягоды, плоды растений вида Vaccinium прочие, не включенные в другие группировки. Пояснение по требуемой продукции: плоды шиповника | E186: 01.25.19.190-001 | F186: 166 | G186: Килограмм | H186: 358.75
E187: 01.25.19.190-002 | F187: 166 | G187: Килограмм | H187: 450.65
B188: 92 | C188: 01.25.19 | D188: Ягоды, плоды растений вида Vaccinium прочие, не включенные в другие группировки. Пояснение по требуемой продукции: виноград | E188: 01.25.19.190-003 | F188: 166 | G188: Килограмм | H188: 403.76
E189: 01.25.19.190-006 | F189: 166 | G189: Килограмм | H189: 403.76
E190: 01.25.19.190-004 | F190: 166 | G190: Килограмм | H190: 416.19
E191: 01.25.19.190-005 | F191: 166 | G191: Килограмм | H191: 416.19
B192: 93 | C192: 01.25.31 | D192: Миндаль | E192: 01.25.31.000-001 | F192: 166 | G192: Килограмм | H192: 1103.77
B193: 94 | C193: 01.25.33 | D193: Фундук | E193: 01.25.33.000-001 | F193: 166 | G193: Килограмм | H193: 1022.16
B194: 95 | C194: 01.25.35 | D194: Орехи грецкие | E194: 01.25.35.000-001 | F194: 166 | G194: Килограмм | H194: 1282.17
B195: 96 | C195: 01.25.39 | D195: Орехи прочие, не включенные в другие группировки. Пояснение по требуемой продукции: кешью | E195: 01.25.39.000-001 | F195: 166 | G195: Килограмм | H195: 848.67
B196: 97 | C196: 01.47.21 | D196: Яйца куриные в скорлупе свежие | E196: 01.47.21.000-001 | F196: 796 | G196: Штука | H196: 12.6
E197: 01.47.21.000-002 | F197: 796 | G197: Штука | H197: 13.33
B198: 98 | C198: 01.49.21 | D198: Мед натуральный. Пояснение по требуемой продукции: мед натуральный пчелиный | E198: 01.49.21.110-001 | F198: 166 | G198: Килограмм | H198: 459.98
E199: 01.49.21.110-002 | F199: 166 | G199: Килограмм | H199: 459.98
B200: 99 | C200: 03.11.63 | D200: Водоросли морские и прочие, не являющиеся продукцией рыбоводства. Пояснение по требуемой продукции: капуста морская | E200: 03.11.63.120-002 | F200: 166 | G200: Килограмм | H200: 2511.75
... 2618 more rows
